bitfinex/quotes_ETHUSD_20250415
["timestamp","ask_amount","ask_price","bid_price","bid_amount"]
[1744739965837,1e-05,1616.4,1616.3,6.79882851]
[1744739966843,1e-05,1616.4,1616.3,6.73697]
[1744739967357,1e-05,1616.4,1616.1,6.98127]
[1744739967564,13.759952,1616.4,1616.1,6.18767]
[1744739967724,6.18707,1616.3,1616.0,6.18802]
[1744739968040,12.37428,1616.3,1616.0,6.18802]
[1744739968245,6.18707,1616.3,1616.0,12.37603]
[1744739968847,6.18735,1616.2,1615.9,12.37676]
[1744739969045,12.37485,1616.2,1616.0,0.55]
[1744739969363,12.37485,1616.2,1615.9,6.18838]
[1744739969364,0.7876,1616.1,1615.9,12.37675]
[1744739969519,6.97552,1616.1,1615.9,0.55]
[1744739969716,0.7876,1616.1,1615.5,4.36960546]
[1744739969917,6.18872,1615.9,1615.5,13.16733]
[1744739970121,6.18872,1615.9,1615.6,0.55]
[1744739970122,12.3775,1615.9,1615.6,0.55]
[1744739970340,6.18889,1615.8,1615.5,6.97741]
[1744739970561,6.95879,1615.8,1615.5,13.16731]
[1744739970856,6.95879,1615.8,1615.6,0.55]
[1744739971152,8.273609,1615.8,1615.4,6.19027]
[1744739971452,14.462739,1615.8,1615.5,6.19001]
[1744739971745,6.18938,1615.7,1615.4,6.19027]
[1744739972044,6.95887,1615.8,1615.5,0.55]
[1744739972248,13.14795,1615.8,1615.5,6.74001]
[1744739972545,6.95887,1615.8,1615.5,6.74001]
[1744739973138,0.7699,1615.8,1615.5,12.92992]
[1744739973342,6.3559,1616.0,1615.6,6.73939]
[1744739973715,6.18866,1615.9,1615.6,6.73939]
[1744739974321,12.37737,1615.9,1615.6,6.73939]
[1744739974646,6.94104,1616.0,1615.7,6.18901]
[1744739974839,5.604,1616.0,1615.7,3.58210546]
[1744739975035,5.604,1616.0,1615.8,0.35821055]
[1744739975237,5.604,1616.0,1615.8,6.54686055]
[1744739975450,5.604,1616.0,1615.9,6.7385]
[1744739975650,11.79107,1616.3,1616.0,6.18804]
[1744739975839,6.18736,1616.2,1615.9,7.5268]
[1744739976029,12.37502,1616.2,1615.9,8.93417906]
[1744739976236,6.18773,1616.1,1615.9,1.95737906]
[1744739976848,6.18736,1616.2,1615.6,6.18948]
[1744739976849,6.18862,1615.9,1615.6,6.18948]
[1744739977242,12.37726,1615.9,1615.6,6.18948]
[1744739977751,6.18862,1615.9,1615.6,12.44089776]
[1744739978092,6.18862,1615.9,1615.6,12.37901]
[1744739978385,0.8051,1616.0,1615.7,6.73921]
[1744739978549,12.37593,1616.1,1615.9,0.55]
[1744739978744,6.1879,1616.1,1615.9,0.55]
[1744739978966,12.37638,1616.0,1615.7,0.7852]
[1744739979270,12.37638,1616.0,1615.7,0.55]
[1744739979447,6.18811,1616.0,1615.7,6.73924]
[1744739979635,12.37639,1616.0,1615.7,6.73924]
[1744739979832,7.01341,1615.9,1615.6,6.18953]
[1744739980034,7.01341,1615.9,1615.6,12.37906]
[1744739980283,0.8248,1615.9,1615.7,6.18921]
[1744739980582,7.0134,1615.9,1615.6,6.18953]
[1744739980753,13.20207,1615.9,1615.6,6.18953]
[1744739980958,0.8248,1615.9,1615.7,6.18923]
[1744739981260,6.18822,1616.0,1615.7,6.18914]
[1744739981468,6.18851,1615.9,1615.7,0.55]
[1744739982972,12.37718,1615.9,1615.7,0.55]
[1744739983180,6.18951,1615.7,1615.4,6.1903]
[1744739983476,12.61745,1615.9,1615.4,3.58210546]
[1744739983681,18.80627,1615.9,1615.6,0.55]
[1744739983846,6.1889,1615.8,1615.6,0.55]
[1744739985980,6.96263,1616.1,1615.6,4.88562946]
[1744739986179,12.5669,1616.1,1615.8,0.55]
[1744739986396,6.18815,1616.0,1615.8,0.55]
[1744739986717,12.3764,1616.0,1615.8,0.55]
[1744739986984,12.37645,1616.0,1615.8,0.55]
[1744739987483,6.18815,1616.0,1615.8,0.55]
[1744739987683,12.3764,1616.0,1615.8,0.55]
[1744739988483,12.37647,1616.0,1615.8,0.55]
[1744739988678,12.37643,1616.0,1615.8,0.55]
[1744739989878,6.1885,1615.9,1615.8,0.55]
[1744739991148,12.37651,1616.0,1615.8,0.55]
[1744739991958,12.37653,1616.0,1615.8,0.55]
[1744739992247,12.37644,1616.0,1615.8,0.55]
[1744739992787,6.18815,1616.0,1615.8,0.55]
[1744739993752,6.18815,1616.0,1615.8,1.3581]
[1744739994159,12.37642,1616.0,1615.8,1.3581]
[1744739994580,12.37662,1616.0,1615.8,1.3581]
[1744739994782,6.18815,1616.0,1615.8,0.55]
[1744739994987,6.1885,1615.9,1615.8,0.55]
[1744740000300,6.18888,1615.8,1615.5,6.18992]
[1744740000489,6.18888,1615.8,1615.5,13.14115]
[1744740000686,6.98406,1616.0,1615.5,0.7613]
[1744740000892,6.18965,1615.6,1615.3,6.95197]
[1744740001092,6.3898,1616.1,1615.4,4.41450546]
[1744740001397,11.75512,1616.0,1615.7,7.02151]
[1744740001718,11.75512,1616.0,1615.7,7.08339199]
[1744740001719,5.567,1616.0,1615.7,7.08339199]
[1744740002170,6.18926,1615.7,1615.4,0.8327]
[1744740002481,0.7723,1615.8,1615.5,6.25154384]
[1744740002688,0.7723,1615.8,1615.5,12.44157384]
[1744740002906,6.1889,1615.8,1615.5,6.18965]
[1744740003203,6.1889,1615.8,1615.5,6.25154276]
[1744740003408,0.06189401,1615.7,1614.6,0.31297461]
[1744740003582,7.02123,1615.2,1614.9,6.19209]
[1744740003783,5.567,1615.5,1615.1,0.8164]
[1744740004102,6.98282,1615.8,1615.5,6.19003]
[1744740004413,13.23383401,1615.8,1615.5,0.55]
[1744740004577,13.17194,1615.8,1615.5,0.55]
[1744740004775,6.18931,1615.7,1615.5,0.55]
[1744740004975,6.18976,1615.6,1615.3,6.1907]
[1744740005581,12.3796,1615.6,1615.3,6.1907]
[1744740005813,6.19003,1615.5,1615.3,0.55]
[1744740006011,6.18976,1615.6,1615.3,6.74067]
[1744740006306,1.237907,1615.6,1615.3,0.55]
[1744740006513,6.9828,1615.8,1615.5,0.55]
[1744740006679,6.19024,1615.5,1615.2,7.02325]
[1744740006886,6.18946,1615.7,1615.3,6.7405]
[1744740007124,0.85569401,1615.8,1615.3,6.7405]
[1744740007125,6.25171401,1615.6,1615.3,6.7405]
[1744740007325,0.7938,1615.8,1615.3,6.7405]
[1744740007326,6.98268,1615.8,1615.5,6.18998]
[1744740007606,6.18976,1615.6,1615.4,0.55]
[1744740007814,6.25165401,1615.6,1615.3,0.55]
[1744740008609,6.19008,1615.5,1615.3,0.55]
[1744740009185,12.37974,1615.6,1615.3,0.55]
[1744740009387,6.18976,1615.6,1615.3,0.55]
[1744740009615,6.19013,1615.5,1615.3,0.55]
[1744740010842,13.0683328,1615.6,1615.3,0.55]
[1744740011141,6.19013,1615.5,1615.3,0.55]
[1744740011644,6.19063,1615.4,1615.2,0.8322]
[1744740011940,12.38138,1615.4,1615.1,0.55]
[1744740012088,7.428948,1615.3,1615.1,0.55]
[1744740012697,6.19118,1615.2,1614.9,13.17681]
[1744740012896,6.3931,1615.5,1615.0,0.55]
[1744740013239,11.7582,1615.5,1615.3,0.55]
[1744740013594,11.75819,1615.5,1615.3,0.55]
[1744740013843,6.25249401,1615.4,1615.1,6.19145]
[1744740014012,6.1906,1615.4,1615.1,6.19144]
[1744740014201,7.03609401,1615.4,1615.1,0.55]
[1744740014425,6.19085,1615.3,1615.1,0.55]
[1744740014646,6.19085,1615.3,1615.0,7.00372]
[1744740014846,6.19085,1615.3,1615.0,13.19555]
[1744740015050,0.7836,1615.4,1615.1,6.25347014]
[1744740015254,14.59909304,1615.4,1615.1,6.19144]
[1744740015420,8.40841304,1615.4,1615.1,0.55]
[1744740015754,14.66101705,1615.4,1615.1,6.74155]
[1744740015920,14.59912304,1615.4,1615.1,6.74155]
[1744740016352,1.43428304,1615.4,1615.1,0.61190709]
[1744740016525,5.568,1615.5,1615.2,6.19088]
[1744740016728,11.75816,1615.5,1615.2,6.19088]
[1744740016937,17.94843,1615.5,1615.2,6.19088]
[1744740017137,11.75816,1615.5,1615.2,6.19088]
[1744740017335,0.698268,1615.7,1615.3,1.3816]
[1744740017539,12.456738,1615.7,1615.4,6.25230715]
[1744740017738,1.2456738,1615.6,1615.4,6.25230715]
[1744740017940,1.2456738,1615.6,1615.4,12.44259715]
[1744740018253,6.267268,1615.7,1615.4,12.3807]
[1744740018461,0.8076,1616.0,1615.7,6.18901]
[1744740018681,6.1886,1615.9,1615.7,0.55]
[1744740018827,12.37732,1615.9,1615.7,0.55]
[1744740019022,6.3766,1616.0,1615.4,16.77674546]
[1744740019023,6.18932,1615.7,1615.4,16.77674546]
[1744740019283,1.23782,1615.7,1615.4,0.814]
[1744740019483,1.23782,1615.7,1615.0,9.15110546]
[1744740019484,6.19014,1615.5,1615.2,0.814]
[1744740019793,12.44181401,1615.6,1615.2,13.19608]
[1744740019942,6.19006,1615.5,1615.2,7.00504]
[1744740020276,17.94877,1615.6,1615.3,6.1908]
[1744740020593,17.94877,1615.6,1614.8,6.98537]
[1744740020594,6.19143,1615.2,1614.8,6.98537]
[1744740020736,7.06278401,1615.1,1614.7,12.38598]
[1744740021090,13.25466401,1615.1,1614.8,0.55]
[1744740021248,6.192,1615.0,1614.6,6.98239]
[1744740021447,12.38411,1615.0,1614.6,13.17572]
[1744740021644,6.25425401,1614.9,1614.6,6.98233]
[1744740021860,13.7096304,1615.0,1614.6,13.17568]
[1744740022058,0.8091,1615.1,1614.9,6.19233]
[1744740022278,5.569,1615.2,1615.1,6.19156]
[1744740023456,5.569,1615.2,1615.0,0.55]
[1744740023681,5.569,1615.2,1615.0,6.74162]
[1744740024768,6.25348401,1615.1,1614.8,6.19251]
[1744740024968,6.25348401,1615.1,1614.7,10.57221546]
[1744740024969,13.20851401,1615.1,1614.7,6.99011]
[1744740025156,13.14662,1615.1,1614.8,0.55]
[1744740025356,6.95479,1615.1,1614.8,6.74259]
[1744740025580,7.01668401,1615.1,1614.8,6.74259]
[1744740025883,8.18749944,1615.1,1614.8,12.93518]
[1744740026080,6.7511704,1615.2,1614.8,0.55]
[1744740026284,0.06189401,1615.3,1615.1,6.19156]
[1744740026579,5.644,1615.3,1615.2,6.19118]
[1744740027084,5.644,1615.3,1615.1,6.19144]
[1744740027376,5.644,1615.3,1615.2,6.19118]
[1744740027771,5.644,1615.3,1615.1,6.19141]
[1744740028172,5.644,1615.3,1615.1,12.38283]
[1744740028370,5.644,1615.3,1615.1,12.38287]
[1744740028782,5.644,1615.3,1615.2,6.19118]
[1744740029284,5.644,1615.3,1615.1,6.19141]
[1744740029754,5.644,1615.3,1615.2,6.19118]
[1744740030089,6.2084,1615.3,1615.1,6.19141]
[1744740030478,5.644,1615.3,1615.2,6.19118]
[1744740030876,5.644,1615.3,1615.1,12.38285]
[1744740031088,5.644,1615.3,1615.2,6.74118]
[1744740031589,67.11718,1615.6,1615.2,12.93236]
[1744740031759,67.11704,1615.6,1615.3,6.19074]
[1744740031956,6.94118,1615.9,1615.4,0.8036]
[1744740032182,6.94118,1615.9,1615.4,6.99398]
[1744740032183,6.18947,1615.7,1615.4,6.99398]
[1744740032401,12.37911,1615.7,1615.4,6.74039]
[1744740032961,6.18969,1615.6,1615.4,0.55]
[1744740033509,7.00129,1615.6,1615.4,0.55]
[1744740033709,6.18967,1615.6,1615.4,0.55]
[1744740033862,7.508735,1615.6,1615.4,0.55]
[1744740034190,1.319065,1615.6,1615.1,0.7637]
[1744740034367,6.19041,1615.4,1614.8,6.1926]
[1744740034569,6.98503,1615.0,1614.7,0.7637]
[1744740034795,0.7928,1615.2,1614.7,4.34580546]
[1744740035098,0.7928,1615.2,1614.8,6.7426]
[1744740035261,6.98414,1615.2,1614.8,12.93519]
[1744740035467,7.74444801,1615.2,1614.8,12.93519]
[1744740035666,1.55310801,1615.2,1614.8,6.74259]
[1744740035894,7.04597401,1615.2,1614.8,6.74259]
[1744740036073,6.19158,1615.1,1614.8,6.74259]
[1744740036393,0.06189401,1615.0,1614.6,6.19339]
[1744740036592,6.19274,1614.8,1614.5,0.7758]
[1744740036793,0.619274,1614.7,1614.5,6.19375]
[1744740036982,0.06189401,1615.0,1614.7,6.19285]
[1744740037183,6.19242,1614.9,1614.6,6.74336]
[1744740037403,6.19242,1614.9,1614.6,0.55]
[1744740037404,12.44694401,1614.9,1614.6,0.55]
[1744740037565,12.44694401,1614.9,1614.6,6.74343]
[1744740037566,6.19242,1614.9,1614.6,6.74343]
[1744740037761,6.25431401,1614.9,1614.6,6.74343]
[1744740037992,6.9798,1615.0,1614.6,12.93677]
[1744740038195,2.11197401,1615.0,1614.4,7.39670546]
[1744740038399,2.11197401,1615.0,1614.5,0.06193123]
[1744740038595,0.84969401,1615.0,1614.7,0.55]
[1744740038896,5.643,1615.1,1614.9,0.55]
[1744740039097,5.643,1615.1,1614.9,6.74222]
[1744740039470,5.643,1615.1,1614.9,6.74219]
[1744740039671,12.59496,1615.4,1615.1,0.55]
[1744740039874,18.682956,1615.4,1615.1,6.74154]
[1744740040097,0.8299,1615.6,1615.4,6.19012]
[1744740040283,0.06189401,1615.9,1615.6,6.18965]
[1744740040600,8.58299129,1616.3,1615.8,6.18873]
[1744740040601,7.49240254,1616.2,1615.8,6.18873]
[1744740040801,6.62050853,1616.2,1616.0,6.18799]
[1744740041314,6.62050853,1616.2,1615.9,6.18832]
[1744740041517,6.18778,1616.1,1615.9,0.55]
[1744740041674,14.65319038,1616.2,1615.9,0.55]
[1744740042083,6.18774,1616.1,1615.8,6.99463]
[1744740042282,6.18774,1616.1,1615.4,13.20932]
[1744740042283,6.1889,1615.8,1615.4,13.20932]
[1744740042502,6.1889,1615.8,1615.5,6.73997]
[1744740042687,6.1889,1615.8,1615.5,8.115892]
[1744740042887,12.44002401,1615.8,1615.4,13.20953]
[1744740043080,6.1889,1615.8,1615.4,13.20953]
[1744740043277,6.18858,1615.9,1615.6,6.18952]
[1744740043606,12.43921401,1615.9,1615.6,0.55]
[1744740043813,6.18911,1615.8,1615.4,7.01918]
[1744740043975,6.808021,1615.8,1615.4,7.01918]
[1744740044176,12.997191,1615.8,1615.4,7.01918]
[1744740044418,6.807981,1615.8,1615.4,13.20944]
[1744740044635,0.06189401,1615.8,1615.6,6.73947]
[1744740044926,0.8182,1616.1,1615.8,12.37743]
[1744740045130,6.24954401,1616.2,1615.9,6.18843]
[1744740045493,6.18765,1616.2,1615.9,6.18843]
[1744740045924,6.98576,1616.3,1615.9,12.37676]
[1744740046127,5.64301,1616.4,1616.1,6.18748]
[1744740046326,11.89163401,1616.4,1616.1,6.18748]
[1744740046506,5.70490401,1616.4,1616.0,0.55]
[1744740046710,6.18716,1616.3,1616.0,0.55]
[1744740046916,6.18716,1616.3,1616.0,6.73801]
[1744740047119,6.24945401,1616.2,1615.8,6.1887]
[1744740047323,0.89129401,1616.2,1615.9,0.55]
[1744740047499,0.8294,1616.2,1615.9,6.73827]
[1744740048032,7.01678,1616.2,1615.9,6.73827]
[1744740048399,7.01678,1616.2,1615.9,0.55]
[1744740048601,0.8294,1616.2,1615.9,6.73834]
[1744740048929,7.43813041,1616.3,1615.9,6.73834]
[1744740049432,6.18736,1616.2,1615.9,6.80021825]
[1744740049633,7.3762364,1616.3,1615.9,12.98859825]
[1744740049929,13.62527041,1616.3,1615.9,12.92672]
[1744740050134,7.3762364,1616.3,1615.9,6.73834]
[1744740050313,12.60057,1616.4,1616.0,6.18789]
[1744740050702,18.78734,1616.4,1616.0,6.18789]
[1744740050895,18.78744,1616.4,1616.0,12.37584]
[1744740051635,6.18701,1616.3,1616.0,6.18789]
[1744740051932,0.06189401,1616.3,1615.7,0.7571]
[1744740052118,0.06189401,1616.3,1615.7,12.37838]
[1744740052119,6.18828,1616.0,1615.7,12.37838]
[1744740052311,6.18828,1616.0,1615.7,6.18919]
[1744740052835,1e-05,1616.4,1616.0,0.55]
[1744740053005,12.37446,1616.3,1616.0,0.55]
[1744740053605,6.1874,1616.2,1616.0,0.55]
[1744740054028,14.44117801,1616.2,1615.9,6.18834]
[1744740054223,14.379284,1616.2,1615.9,0.55]
[1744740054638,8.191754,1616.2,1615.9,6.73837]
[1744740054938,8.25364801,1616.2,1615.9,6.73837]
[1744740055141,14.44117801,1616.2,1615.9,6.73837]
[1744740055339,8.191754,1616.2,1615.9,6.73837]
[1744740055540,8.25364801,1616.2,1615.9,0.55]
[1744740055742,6.18776,1616.1,1615.9,0.55]
[1744740055940,8.191754,1616.2,1615.9,6.73848]
[1744740056245,7.0070754,1616.1,1615.8,0.7504]
[1744740056547,13.15939,1615.9,1615.6,6.18955]
[1744740056749,7.8288054,1616.1,1615.8,6.18872]
[1744740057047,7.89069941,1616.1,1615.8,6.18872]
[1744740057205,0.78906994,1616.0,1615.7,6.18919]
[1744740057410,0.8218,1615.8,1615.5,6.18992]
[1744740057715,7.01086,1615.8,1615.5,12.37982]
[1744740057918,0.8218,1615.8,1615.6,6.18955]
[1744740058164,0.8218,1615.8,1615.6,6.18951]
[1744740058448,0.06189401,1615.9,1615.6,6.18951]
[1744740058650,13.22571741,1615.9,1615.6,6.18951]
[1744740058851,13.22571741,1615.9,1615.7,6.18925]
[1744740058852,0.7865834,1615.9,1615.7,6.18925]
[1744740059034,6.9752234,1615.9,1615.6,6.18954]
[1744740059234,0.7865834,1615.9,1615.6,12.37906]
[1744740059449,7.03698741,1615.9,1615.6,6.18952]
[1744740059775,7.03698741,1615.9,1615.6,6.18951]
[1744740059992,7.03698741,1615.9,1615.6,12.37905]
[1744740060148,0.8267,1616.0,1615.8,6.18888]
[1744740060336,6.4625,1616.2,1615.9,6.18839]
[1744740060543,6.24971401,1616.1,1615.8,12.37764]
[1744740060865,6.24971401,1616.1,1615.8,6.18876]
[1744740061179,0.06189401,1616.1,1615.9,6.18849]
[1744740061382,12.65011,1616.2,1615.8,0.55]
[1744740061383,6.4625,1616.2,1615.8,0.55]
[1744740061567,12.43790401,1616.1,1615.8,0.55]
[1744740061751,7.01132,1615.9,1615.6,6.73947]
[1744740061929,0.8227,1615.9,1615.6,6.73947]
[1744740062129,7.0113,1615.9,1615.6,6.73962]
[1744740062334,0.06189401,1616.0,1615.6,0.55]
[1744740062555,6.18816,1616.0,1615.7,6.18903]
[1744740063082,6.18816,1616.0,1615.7,6.18924]
[1744740063285,5.667,1616.2,1616.0,6.18784]
[1744740063575,5.667,1616.2,1616.0,12.37585]
[1744740063793,5.667,1616.2,1616.0,0.55]
[1744740063939,11.8545,1616.2,1616.0,0.55]
[1744740064384,6.24972401,1616.1,1615.8,6.95724]
[1744740064538,6.24972401,1616.1,1615.8,6.18884]
[1744740064737,6.24972401,1616.1,1615.8,12.37756]
[1744740064964,6.24972401,1616.1,1615.8,6.18878]
[1744740065279,6.24972401,1616.1,1615.8,12.37755]
[1744740065699,6.99552,1616.0,1615.7,6.73915]
[1744740065838,13.18397,1616.0,1615.7,6.73915]
[1744740066039,0.8074,1616.0,1615.7,6.73913]
[1744740066266,6.99553,1616.0,1615.7,12.92826]
[1744740066585,0.8074,1616.0,1615.8,6.18884]
[1744740066756,0.8074,1616.0,1615.8,6.18876]
[1744740066967,6.4422,1616.2,1616.0,6.18811]
[1744740067144,6.18702,1616.3,1616.0,12.37611]
[1744740067340,1e-05,1616.4,1616.3,6.73697]
[1744740068457,1e-05,1616.4,1616.3,0.55]
[1744740068740,1e-05,1616.4,1616.3,0.06186371]
[1744740068944,1e-05,1616.4,1616.2,12.3747]
[1744740069244,1e-05,1616.4,1616.2,12.37458]
[1744740069501,1e-05,1616.4,1616.2,12.37446]
[1744740069839,1e-05,1616.4,1616.2,6.18723]
[1744740070039,1e-05,1616.4,1616.2,6.18722]
[1744740070441,6.18663,1616.4,1616.1,6.7376]
[1744740070669,6.18663,1616.4,1616.1,12.92522]
[1744740070942,6.18736,1616.2,1615.9,6.18835]
[1744740071240,12.43678401,1616.2,1615.8,13.851076]
[1744740071464,12.37489,1616.2,1615.9,6.18846]
[1744740071670,12.37489,1616.2,1615.8,7.662226]
[1744740071671,0.812,1616.3,1615.8,0.7995]
[1744740071838,12.37659,1616.0,1615.7,6.18915]
[1744740072039,12.37659,1616.0,1615.7,13.695816]
[1744740072040,6.18826,1616.0,1615.7,13.695816]
[1744740072292,6.18906,1615.8,1615.5,6.18987]
[1744740072593,0.8037,1615.7,1615.4,13.17712]
[1744740072740,6.99231,1615.9,1615.5,6.19002]
[1744740073048,12.64499,1616.0,1615.6,6.18953]
[1744740073260,6.18899,1615.8,1615.5,6.18987]
[1744740073463,6.18899,1615.8,1615.5,6.25176405]
[1744740073653,7.00756,1615.7,1615.4,6.19035]
[1744740073852,0.8182,1615.7,1615.5,6.18992]
[1744740074166,0.8182,1615.7,1615.5,6.18989]
[1744740074553,0.8182,1615.7,1615.3,12.38144]
[1744740074554,6.18965,1615.6,1615.3,12.38144]
[1744740074755,7.00761,1615.7,1615.4,6.19035]
[1744740074956,0.8182,1615.7,1615.4,6.2521683]
[1744740075151,7.00749,1615.7,1615.4,6.19027]
[1744740075376,7.00749,1615.7,1615.4,12.38054]
[1744740075581,0.8182,1615.7,1615.5,6.19]
[1744740075782,0.8182,1615.7,1615.5,12.37992]
[1744740075990,0.8045,1616.1,1615.9,6.18838]
[1744740076174,0.06189401,1616.2,1615.9,6.18839]
[1744740076463,6.54729401,1616.3,1616.0,6.73798]
[1744740076761,6.18748,1616.2,1616.0,0.55]
[1744740077268,12.67246,1616.3,1616.0,0.55]
[1744740077583,18.8174196,1616.3,1616.0,6.73808]
[1744740077789,12.67246,1616.3,1616.0,12.92607]
[1744740078088,5.667,1616.3,1616.1,6.1877]
[1744740078290,1e-05,1616.4,1616.3,0.55]
[1744740078483,1e-05,1616.4,1616.3,6.73697]
[1744740078893,1e-05,1616.4,1616.3,7.56507]
[1744740079187,1e-05,1616.4,1616.3,9.3637022]
[1744740079961,1e-05,1616.4,1616.3,9.42556193]
[1744740080364,1e-05,1616.4,1616.3,9.3637022]
[1744740082792,1e-05,1616.4,1616.3,9.42555668]
[1744740084295,1e-05,1616.4,1616.3,9.4255527]
[1744740084551,1e-05,1616.4,1616.3,9.3637022]
[1744740084666,1e-05,1616.4,1616.3,9.42555672]
[1744740085879,1e-05,1616.4,1616.2,6.18716]
[1744740086082,1e-05,1616.4,1616.2,12.43623148]
[1744740086374,1e-05,1616.4,1616.3,6.18697]
[1744740086590,1e-05,1616.4,1616.2,6.18716]
[1744740086786,1e-05,1616.4,1616.3,6.73697]
[1744740086993,1e-05,1616.4,1616.3,0.55]
[1744740087796,1e-05,1616.4,1616.3,6.73697]
[1744740090496,1e-05,1616.4,1616.1,6.18769]
[1744740090696,7.0089,1615.9,1615.5,7.00402]
[1744740090997,7.0089,1615.9,1615.0,6.19163]
[1744740090998,6.18927,1615.7,1615.4,6.1903]
[1744740091226,6.18967,1615.6,1615.3,8.323914]
[1744740091510,6.19016,1615.5,1615.2,6.19103]
[1744740091697,6.19045,1615.4,1615.1,12.38294]
[1744740091899,0.8202,1615.6,1615.3,6.7406]
[1744740092104,0.8202,1615.6,1615.3,6.1906]
[1744740092317,7.0101,1615.6,1615.3,6.1906]
[1744740092634,2.20203601,1615.6,1615.1,6.19152]
[1744740092938,0.8129,1615.3,1615.0,6.1919]
[1744740093107,0.8129,1615.3,1614.8,7.00161]
[1744740093307,0.8129,1615.3,1615.1,6.19144]
[1744740093999,18.84267,1615.5,1615.2,0.55]
[1744740094200,12.65254,1615.5,1615.1,6.19133]
[1744740094574,6.4623,1615.5,1615.3,6.19077]
[1744740095215,6.4761,1615.7,1615.6,6.18965]
[1744740095414,0.70089,1615.9,1615.6,0.55]
[1744740095415,7.75566401,1615.9,1615.6,0.55]
[1744740095622,6.18905,1615.8,1615.6,0.55]
[1744740095879,6.9646434,1615.8,1615.6,0.55]
[1744740096033,6.19053,1615.4,1615.1,6.19141]
[1744740096349,6.19086,1615.3,1615.1,0.55]
[1744740096648,6.19053,1615.4,1615.2,0.55]
[1744740096954,6.19123,1615.2,1614.9,12.38435]
[1744740097250,6.19133,1615.2,1614.9,6.19216]
[1744740097754,0.8089,1615.1,1614.9,6.19216]
[1744740097932,0.8089,1615.1,1614.9,12.38435]
[1744740098523,0.8089,1615.1,1615.0,6.19195]
[1744740099156,0.8089,1615.1,1614.9,12.38435]
[1744740099452,0.8089,1615.1,1614.6,7.01768]
[1744740099683,0.8311,1615.3,1615.1,6.19156]
[1744740099810,18.88346,1615.5,1615.2,0.55]
[1744740100014,6.19046,1615.4,1615.2,0.55]
[1744740101309,6.19046,1615.4,1614.9,6.19217]
[1744740101310,0.06189401,1615.3,1614.9,6.19217]
[1744740101513,6.1913,1615.2,1614.9,12.38437]
[1744740101709,6.25282401,1615.3,1614.9,12.38437]
[1744740101952,0.6252824,1615.2,1614.9,12.38437]
[1744740102129,0.6252824,1615.2,1615.0,6.19182]
[1744740102333,7.03990401,1615.4,1615.1,6.19156]
[1744740102739,13.23051401,1615.4,1615.1,6.19156]
[1744740103052,13.16862,1615.4,1615.1,0.55]
[1744740103649,6.97801,1615.4,1615.1,6.74151]
[1744740103822,0.7875,1615.4,1615.2,6.191]
[1744740104139,8.92386601,1615.4,1615.0,12.38368]
[1744740104348,8.92386601,1615.4,1615.0,6.19184]
[1744740104707,2.73340601,1615.4,1615.1,0.55]
[1744740105043,5.672,1615.5,1615.3,6.74079]
[1744740105211,0.82759401,1615.6,1615.2,6.19117]
[1744740105412,0.82759401,1615.6,1615.3,6.19075]
[1744740105736,6.4495934,1615.8,1615.5,6.73989]
[1744740105737,7.2152934,1615.8,1615.5,6.73989]
[1744740105913,1.5412934,1615.8,1615.6,6.18954]
[1744740106117,0.7755934,1615.8,1615.6,12.37908]
[1744740106341,6.95139401,1615.9,1615.6,6.18954]
[1744740106542,0.76278401,1615.9,1615.7,6.18925]
[1744740107040,6.1894,1615.7,1615.5,0.55]
[1744740107204,6.95135401,1615.9,1615.5,6.73969]
[1744740107407,6.18927,1615.7,1615.3,12.38119]
[1744740107636,0.06189401,1615.6,1615.3,6.19049]
[1744740107842,6.18927,1615.7,1615.4,6.19041]
[1744740108220,12.37871,1615.7,1615.3,12.38138]
[1744740108419,6.18927,1615.7,1615.3,12.38138]
[1744740108619,13.76370654,1615.7,1615.3,12.38138]
[1744740108821,6.18968,1615.6,1615.3,6.19068]
[1744740109021,1.38499654,1615.7,1615.4,0.55]
[1744740109330,6.18943,1615.7,1615.5,0.55]
[1744740109517,0.06189401,1615.6,1615.4,0.55]
[1744740109725,6.96578,1615.8,1615.4,6.7404]
[1744740109948,6.94776201,1615.7,1615.4,6.7404]
[1744740110115,0.696578,1615.7,1615.5,6.18992]
[1744740110514,0.696578,1615.7,1615.4,6.74029]
[1744740110515,0.75847201,1615.7,1615.4,6.74029]
[1744740110727,6.94774201,1615.7,1615.4,6.74029]
[1744740111143,6.94774201,1615.7,1615.3,6.19071]
[1744740111343,6.19006,1615.5,1615.2,6.1911]
[1744740111552,6.25195401,1615.5,1615.2,6.1911]
[1744740111717,0.06189401,1615.5,1615.2,6.19107]
[1744740111919,0.06189401,1615.5,1615.3,6.19076]
[1744740112117,0.88439401,1615.6,1615.3,6.19069]
[1744740112316,0.88439401,1615.6,1615.4,6.19031]
[1744740112714,5.673,1615.7,1615.4,12.38061]
[1744740112918,5.673,1615.7,1615.4,6.1903]
[1744740113118,5.673,1615.7,1615.5,6.73987]
[1744740113848,5.673,1615.7,1615.6,6.18965]
[1744740114355,5.673,1615.7,1615.5,6.73987]
[1744740114650,6.3231094,1615.7,1615.4,12.38074]
[1744740114856,6.3231094,1615.7,1615.4,6.19037]
[1744740115152,6.3231094,1615.7,1615.4,6.19031]
[1744740115153,11.8623,1615.7,1615.4,6.19031]
[1744740115457,11.8623,1615.7,1615.4,6.1903]
[1744740115638,5.73489401,1615.7,1615.5,6.18979]
[1744740115954,5.673,1615.7,1615.4,0.55]